lending/lending_fUSD_20250508
["ID","MTS","AMOUNT","RATE_DAILY","PERIOD"]
[360256840,1746667849492,-275.88054016,0.00019997,2]
[360256841,1746667849531,150.0,0.00018986,7]
[360256842,1746667849551,-1064.28945984,0.00019997,2]
[360256843,1746667849564,-308.90436072,0.00019997,2]
[360256844,1746667849576,-419.20617984,0.00019997,2]
[360256845,1746667849780,-170.36984372,0.00019996,2]
[360256846,1746667849791,-573.34828154,0.00019996,2]
[360256847,1746667849812,-662.27171846,0.00019996,2]
[360256848,1746667849823,-920.96382016,0.00019997,2]
[360256849,1746667849835,-471.22655082,0.00019997,2]
[360256850,1746667849846,-511.50956865,0.00019997,2]
[360256851,1746667849857,-450.0,0.00019997,2]
[360256852,1746667849867,-209.73596909,0.00019997,2]
[360256853,1746667849878,-1235.62,0.00019997,2]
[360256854,1746667849889,-572.61977627,0.00019998,2]
[360256855,1746667849900,-469.38995599,0.00019998,2]
[360256856,1746667849911,-482.62059361,0.00019998,2]
[360256857,1746667849922,-450.0,0.00019998,2]
[360256858,1746667849932,-450.0,0.00019998,2]
[360256859,1746667849943,-196.28734497,0.00019998,2]
[360256860,1746667849954,-265.2733661,0.00019998,2]
[360256861,1746667849966,-450.0,0.00019998,2]
[360256862,1746667849976,-474.22714403,0.00019998,2]
[360256863,1746667849986,-557.28481762,0.00019998,2]
[360256864,1746667849997,-300.0,0.00019998,2]
[360256865,1746667850007,-500.0,0.00019998,2]
[360256866,1746667850018,-481.43915994,0.00019998,2]
[360256867,1746667850029,-266.01303499,0.00019998,2]
[360256868,1746667850039,-450.0,0.00019998,2]
[360256869,1746667850053,-342.72738612,0.00019998,2]
[360256870,1746667850064,-450.0,0.00019998,2]
[360256871,1746667850075,-450.0,0.00019998,2]
[360256872,1746667850086,-450.0,0.00019998,2]
[360256873,1746667850097,-450.0,0.00019998,2]
[360256874,1746667850108,-450.0,0.00019998,2]
[360256875,1746667850119,-157.27039203,0.00019998,2]
[360256876,1746667850130,-450.0,0.00019998,2]
[360256877,1746667850141,-450.0,0.00019998,2]
[360256878,1746667850151,-516.21438131,0.00019998,2]
[360256879,1746667850162,-462.33571028,0.00019998,2]
[360256880,1746667850173,-450.0,0.00019998,2]
[360256881,1746667850183,-534.28,0.00019998,2]
[360256882,1746667850193,-438.13557541,0.00019998,2]
[360256883,1746667850329,-51.7821136,0.00019998,2]
[360256884,1746667850340,-151.0,0.00019998,2]
[360256885,1746667850350,-450.0,0.00019998,2]
[360256886,1746667850359,-485.32022779,0.00019998,2]
[360256887,1746667850369,-181.74084,0.00019998,2]
[360256888,1746667850379,-500.0,0.00019998,2]
[360256889,1746667850389,-500.0,0.00019998,2]
[360256890,1746667850400,-465.87573905,0.00019998,2]
[360256891,1746667850410,-450.0,0.00019998,2]
[360256892,1746667850420,-450.0,0.00019998,2]
[360256893,1746667850431,-113.42827729,0.00019998,2]
[360256894,1746667850447,-336.57172271,0.00019998,2]
[360256895,1746667850457,-155.269491,0.00019998,2]
[360256896,1746667850469,-450.0,0.00019998,2]
[360256897,1746667850479,-450.0,0.00019998,2]
[360256898,1746667850489,-115.06174153,0.00019998,2]
[360256899,1746667850501,-334.93825847,0.00019998,2]
[360256900,1746667850512,-156.2376398,0.00019998,2]
[360256901,1746667850523,-450.0,0.00019998,2]
[360256902,1746667850533,-450.0,0.00019998,2]
[360256903,1746667850544,-270.0,0.00019998,2]
[360256904,1746667850557,-450.0,0.00019998,2]
[360256905,1746667850570,-450.0,0.00019998,2]
[360256906,1746667850580,-374.82410173,0.00019998,2]
[360256907,1746667850593,-75.17589827,0.00019998,2]
[360256908,1746667850604,-450.0,0.00019998,2]
[360256909,1746667850614,-450.0,0.00019998,2]
[360256910,1746667850624,-554.97,0.00019998,2]
[360256911,1746667850634,-450.0,0.00019998,2]
[360256912,1746667850645,-463.08196571,0.00019998,2]
[360256913,1746667850655,-450.0,0.00019998,2]
[360256914,1746667850665,-578.49621634,0.00019998,2]
[360256915,1746667850675,-450.0,0.00019998,2]
[360256916,1746667850685,-450.0,0.00019998,2]
[360256917,1746667850695,-450.0,0.00019998,2]
[360256918,1746667850705,-450.0,0.00019998,2]
[360256919,1746667850715,-450.0,0.00019998,2]
[360256920,1746667850724,-450.0,0.00019998,2]
[360256921,1746667850734,-450.0,0.00019998,2]
[360256922,1746667850744,-450.0,0.00019998,2]
[360256923,1746667850756,-450.0,0.00019998,2]
[360256924,1746667850770,-488.56800171,0.00019998,2]
[360256925,1746667850780,-450.0,0.00019998,2]
[360256926,1746667850789,-450.0,0.00019998,2]
[360256927,1746667850800,-158.533145,0.00019998,2]
[360256928,1746667850809,-450.0,0.00019998,2]
[360256929,1746667850819,-450.0,0.00019998,2]
[360256930,1746667850829,-572.74476291,0.00019998,2]
[360256931,1746667850839,-483.33679328,0.00019998,2]
[360256932,1746667850849,-450.0,0.00019998,2]
[360256933,1746667850859,-286.85352398,0.00019998,2]
[360256934,1746667850869,-450.0,0.00019998,2]
[360256935,1746667850879,-450.0,0.00019998,2]
[360256936,1746667850888,-471.38088307,0.00019998,2]
[360256937,1746667850898,-163.857618,0.00019998,2]
[360256938,1746667850908,-151.0,0.00019998,2]
[360256939,1746667850918,-151.0,0.00019998,2]
[360256940,1746667850927,-450.0,0.00019998,2]
[360256941,1746667850937,-450.0,0.00019998,2]
[360256942,1746667850947,-163.857618,0.00019998,2]
[360256943,1746667850958,-492.50492376,0.00019998,2]
[360256944,1746667850967,-481.21915782,0.00019998,2]
[360256945,1746667850978,-450.0,0.00019998,2]
[360256946,1746667850988,-269.59633555,0.00019998,2]
[360256947,1746667850997,-450.0,0.00019998,2]
[360256948,1746667851008,-450.0,0.00019998,2]
[360256949,1746667851018,-487.19200874,0.00019998,2]
[360256950,1746667851027,-536.9014517,0.00019998,2]
[360256951,1746667851038,-450.0,0.00019998,2]
[360256952,1746667851048,-450.0,0.00019998,2]
[360256953,1746667851059,-151.0,0.00019998,2]
[360256954,1746667851069,-450.0,0.00019998,2]
[360256955,1746667851079,-450.0,0.00019998,2]
[360256956,1746667851089,-450.0,0.00019998,2]
[360256957,1746667851099,-450.0,0.00019998,2]
[360256958,1746667851110,-450.0,0.00019998,2]
[360256959,1746667851121,-450.0,0.00019998,2]
[360256960,1746667851130,-450.0,0.00019998,2]
[360256961,1746667851140,-450.0,0.00019998,2]
[360256962,1746667851150,-450.0,0.00019998,2]
[360256963,1746667851160,-450.0,0.00019998,2]
[360256964,1746667851170,-450.0,0.00019998,2]
[360256965,1746667851180,-450.0,0.00019998,2]
[360256966,1746667851190,-450.0,0.00019998,2]
[360256967,1746667851200,-450.0,0.00019998,2]
[360256968,1746667851210,-450.0,0.00019998,2]
[360256969,1746667851220,-450.0,0.00019998,2]
[360256970,1746667851230,-341.39847333,0.00019998,2]
[360256971,1746667851239,-450.0,0.00019998,2]
[360256972,1746667851249,-450.0,0.00019998,2]
[360256973,1746667851260,-450.0,0.00019998,2]
[360256974,1746667851270,-450.0,0.00019998,2]
[360256975,1746667851280,-450.0,0.00019998,2]
[360256976,1746667851290,-481.87873764,0.00019998,2]
[360256977,1746667851301,-450.0,0.00019998,2]
[360256978,1746667851311,-450.0,0.00019998,2]
[360256979,1746667851320,-450.0,0.00019998,2]
[360256980,1746667851331,-450.0,0.00019998,2]
[360256981,1746667851341,-450.0,0.00019998,2]
[360256982,1746667851351,-450.0,0.00019998,2]
[360256983,1746667851361,-450.0,0.00019998,2]
[360256984,1746667851371,-450.0,0.00019998,2]
[360256985,1746667851381,-466.10353508,0.00019998,2]
[360256986,1746667851391,-450.0,0.00019998,2]
[360256987,1746667851402,-450.0,0.00019998,2]
[360256988,1746667851411,-450.0,0.00019998,2]
[360256989,1746667851422,-469.37639602,0.00019998,2]
[360256990,1746667851432,-450.0,0.00019998,2]
[360256991,1746667851441,-450.0,0.00019998,2]
[360256992,1746667851451,-450.0,0.00019998,2]
[360256993,1746667851463,-457.5,0.00019998,2]
[360256994,1746667851473,-450.0,0.00019998,2]
[360256995,1746667851483,-481.79144189,0.00019998,2]
[360256996,1746667851494,-450.0,0.00019998,2]
[360256997,1746667851504,-450.0,0.00019998,2]
[360256998,1746667851514,-464.32,0.00019998,2]
[360256999,1746667851525,-167.83703388,0.00019998,2]
[360257000,1746667851535,-450.0,0.00019998,2]
[360257001,1746667851546,-450.0,0.00019998,2]
[360257002,1746667851559,-450.0,0.00019998,2]
[360257003,1746667851572,-465.3,0.00019998,2]
[360257004,1746667851582,-486.46583353,0.00019998,2]
[360257005,1746667851593,-461.28433701,0.00019998,2]
[360257006,1746667851604,-450.0,0.00019998,2]
[360257007,1746667851615,-450.0,0.00019998,2]
[360257008,1746667851626,-450.0,0.00019998,2]
[360257009,1746667851814,-450.0,0.00019998,2]
[360257010,1746667851826,-450.0,0.00019998,2]
[360257011,1746667851836,-450.0,0.00019998,2]
[360257012,1746667851847,-450.0,0.00019998,2]
[360257013,1746667851857,-450.0,0.00019998,2]
[360257014,1746667851868,-450.0,0.00019998,2]
[360257015,1746667851878,-450.03247207,0.00019998,2]
[360257016,1746667851888,-450.0,0.00019998,2]
[360257017,1746667851899,-450.0,0.00019998,2]
[360257018,1746667851908,-450.0,0.00019998,2]
[360257019,1746667851918,-450.0,0.00019998,2]
[360257020,1746667851927,-450.0,0.00019998,2]
[360257021,1746667851937,-434.22928393,0.00019998,2]
[360257022,1746667851947,-450.0,0.00019998,2]
[360257023,1746667851956,-482.88,0.00019998,2]
[360257024,1746667851966,-450.0,0.00019998,2]
[360257025,1746667851976,-531.23027361,0.00019998,2]
[360257026,1746667851985,-504.26,0.00019998,2]
[360257027,1746667851995,-450.0,0.00019998,2]
[360257028,1746667852005,-450.0,0.00019998,2]
[360257029,1746667852015,-461.62898988,0.00019998,2]
[360257030,1746667852024,-576.20372167,0.00019998,2]
[360257031,1746667852034,-494.00792827,0.00019998,2]
[360257032,1746667852043,-450.0,0.00019998,2]
[360257033,1746667852056,-450.0,0.00019998,2]
[360257034,1746667852065,-450.0,0.00019998,2]
[360257035,1746667852075,-357.3,0.00019998,2]
[360257036,1746667852296,-450.0,0.00019998,2]
[360257037,1746667852308,-450.0,0.00019998,2]
[360257038,1746667852318,-450.0,0.00019998,2]
[360257039,1746667852329,-450.0,0.00019998,2]
[360257040,1746667852339,-472.07028501,0.00019998,2]
[360257041,1746667852349,-450.0,0.00019998,2]
[360257042,1746667852359,-450.0,0.00019998,2]
[360257043,1746667852368,-450.0,0.00019998,2]
[360257044,1746667852378,-450.0,0.00019998,2]
[360257045,1746667852388,-461.18,0.00019998,2]
[360257046,1746667852398,-462.49180696,0.00019998,2]
[360257047,1746667852407,-450.0,0.00019998,2]
[360257048,1746667852418,-450.0,0.00019998,2]
[360257049,1746667852428,-272.79925467,0.00019998,2]
[360257050,1746667852438,-450.0,0.00019998,2]
[360257051,1746667852448,-464.26308109,0.00019998,2]
[360257052,1746667852458,-450.0,0.00019998,2]
[360257053,1746667852468,-450.0,0.00019998,2]
[360257054,1746667852478,-450.0,0.00019998,2]
[360257055,1746667852488,-479.99741608,0.00019998,2]
[360257056,1746667852498,-450.0,0.00019998,2]
[360257057,1746667852507,-450.0,0.00019998,2]
[360257058,1746667852517,-501.40877997,0.00019998,2]
[360257059,1746667852527,-413.40101381,0.00019998,2]
[360257060,1746667852536,-422.52,0.00019998,2]
[360257061,1746667852546,-468.76355074,0.00019998,2]
[360257062,1746667852557,-456.00308049,0.00019998,2]
[360257063,1746667852569,-450.0,0.00019998,2]
[360257064,1746667852579,-485.94348206,0.00019998,2]
[360257065,1746667852589,-500.57486579,0.00019998,2]
[360257066,1746667852599,-216.28696038,0.00019998,2]
[360257067,1746667852609,-450.0,0.00019998,2]
[360257068,1746667852618,-450.0,0.00019998,2]
[360257069,1746667852628,-151.0,0.00019998,2]
[360257070,1746667852637,-450.0,0.00019998,2]
[360257071,1746667852648,-450.0,0.00019998,2]
[360257072,1746667852658,-478.75984107,0.00019998,2]
[360257073,1746667852668,-450.0,0.00019998,2]
[360257074,1746667852677,-191.23235388,0.00019998,2]
[360257075,1746667852686,-463.06257308,0.00019998,2]
[360257076,1746667852696,-450.0,0.00019998,2]
[360257077,1746667852705,-450.0,0.00019998,2]
[360257078,1746667852715,-156.54074,0.00019998,2]
[360257079,1746667852724,-450.0,0.00019998,2]
[360257080,1746667852734,-450.0,0.00019998,2]
[360257081,1746667852743,-313.27008572,0.00019998,2]
[360257082,1746667852753,-450.0,0.00019998,2]
[360257083,1746667852763,-450.0,0.00019998,2]
[360257084,1746667852772,-450.0,0.00019998,2]
[360257085,1746667852782,-450.0,0.00019998,2]
[360257086,1746667852791,-450.0,0.00019998,2]
[360257087,1746667852803,-450.0,0.00019998,2]
[360257088,1746667852812,-450.0,0.00019998,2]
[360257089,1746667852822,-450.0,0.00019998,2]
[360257090,1746667852831,-450.0,0.00019998,2]
[360257091,1746667852841,-489.71555238,0.00019998,2]
[360257092,1746667852851,-466.88696542,0.00019998,2]
[360257093,1746667852860,-296.14682,0.00019998,2]
[360257094,1746667852869,-450.0,0.00019998,2]
[360257095,1746667852879,-450.0,0.00019998,2]
[360257096,1746667852888,-450.0,0.00019998,2]
[360257097,1746667852897,-450.0,0.00019998,2]
[360257098,1746667852907,-450.0,0.00019998,2]
[360257099,1746667852915,-450.0,0.00019998,2]
[360257100,1746667852925,-450.0,0.00019998,2]
[360257101,1746667852935,-450.0,0.00019998,2]
[360257102,1746667852944,-450.0,0.00019998,2]
[360257103,1746667852955,-323.04510195,0.00019998,2]
[360257104,1746667852964,-358.36034587,0.00019998,2]
[360257105,1746667852974,-450.0,0.00019998,2]
[360257106,1746667852983,-450.0,0.00019998,2]
[360257107,1746667852993,-450.0,0.00019998,2]
[360257108,1746667853002,-450.0,0.00019998,2]
[360257109,1746667853012,-450.0,0.00019998,2]
[360257110,1746667853021,-598.14,0.00019998,2]
[360257111,1746667853031,-450.0,0.00019998,2]
[360257112,1746667853040,-450.0,0.00019998,2]
[360257113,1746667853050,-450.0,0.00019998,2]
[360257114,1746667853059,-450.0,0.00019998,2]
[360257115,1746667853069,-450.0,0.00019998,2]
[360257116,1746667853078,-450.0,0.00019998,2]
[360257117,1746667853088,-450.0,0.00019998,2]
[360257118,1746667853097,-516.54,0.00019998,2]
[360257119,1746667853107,-450.0,0.00019998,2]
[360257120,1746667853117,-450.0,0.00019998,2]
[360257121,1746667853126,-450.0,0.00019998,2]
[360257122,1746667853136,-398.88,0.00019998,2]
[360257123,1746667853145,-457.14245636,0.00019998,2]
[360257124,1746667853155,-450.0,0.00019998,2]
[360257125,1746667853165,-450.0,0.00019998,2]
[360257126,1746667853174,-475.0065075,0.00019998,2]
[360257127,1746667853184,-450.0,0.00019998,2]
[360257128,1746667853193,-450.0,0.00019998,2]
[360257129,1746667853203,-450.0,0.00019998,2]
[360257130,1746667853214,-497.49993106,0.00019998,2]
[360257131,1746667853223,-450.0,0.00019998,2]
[360257132,1746667853232,-450.0,0.00019998,2]
[360257133,1746667853242,-450.0,0.00019998,2]
[360257134,1746667853251,-450.0,0.00019998,2]
[360257135,1746667853261,-262.59402926,0.00019998,2]
[360257136,1746667853292,-249.94857434,0.00019998,2]
[360257137,1746667853301,-450.0,0.00019998,2]
[360257138,1746667853314,-450.0,0.00019998,2]
[360257139,1746667853323,-260.19952332,0.00019998,2]
[360257140,1746667853333,-450.0,0.00019998,2]
[360257141,1746667853343,-450.0,0.00019998,2]
[360257142,1746667853354,-450.0,0.00019998,2]
[360257143,1746667853363,-450.0,0.00019998,2]
[360257144,1746667853373,-151.0,0.00019998,2]
[360257145,1746667853383,-175.2653667,0.00019998,2]
[360257163,1746667940843,1000.0,0.00019035,2]
[360257164,1746668016329,500.0,0.00029589,30]
[360257165,1746668016569,500.0,0.00029863,30]
[360257166,1746668029037,8058.0,0.0003,30]
[360257167,1746668043563,154.38,0.0003,30]
[360257169,1746668093478,1000.58689034,0.00030137,120]
[360257170,1746668113186,500.0,0.0003,30]
[360257172,1746668334629,250.0,0.00018948,2]
[360257178,1746668414159,500.0,0.0003,30]
[360257179,1746668526960,500.0,0.00029589,30]
[360257180,1746668527212,500.0,0.00029863,35]
[360257197,1746668549310,279.52,0.00018938,2]
[360257198,1746668555230,772.0,0.0003,120]
[360257199,1746668574131,500.0,0.00029589,30]
[360257200,1746668574382,555.2040566,0.00029863,30]
[360257201,1746668587523,158.8,0.0003,30]
[360257202,1746668592700,204.18697,0.0003,30]
[360257203,1746668665390,241.66,0.00018957,2]
[360257204,1746668691344,159.67,0.0003,30]
[360257205,1746668706835,493.93,0.00017055,2]
[360257206,1746668707071,493.93,0.00019318,2]
[360257207,1746668720296,250.0,0.00017,2]
[360257208,1746668721361,300.0,0.00019,2]
[360257209,1746668778527,500.0,0.0003,30]
[360257210,1746668795725,-1912.0,0.0002,4]
[360257211,1746668803354,-88.0,0.0002,4]
[360257212,1746668803377,-62.0,0.0002,4]
[360257213,1746668805241,947.72493023,0.000195,2]
[360257214,1746668828968,-150.0,0.000197,2]
[360257215,1746668856520,663.64253609,0.00019014,2]
[360257216,1746668856677,663.64253609,0.00019068,2]
[360257217,1746668856854,663.64253609,0.00019151,2]
[360257218,1746668857019,663.64253609,0.00019233,2]
[360257219,1746668857197,663.64253609,0.00019315,2]
[360257220,1746668857360,663.64253609,0.0001937,2]
[360257221,1746668857509,152.0,0.00019452,2]
[360257222,1746668857533,511.64253609,0.00019452,2]
[360257223,1746668886515,628.901909,0.00019436,2]
[360257229,1746668973036,158.54987883,0.0003,30]
[360257230,1746668997541,1838.464062,0.0003,30]
[360257231,1746668998185,1000.0,0.00018919,2]
[360257236,1746669031921,-549.0,0.00019534,2]
[360257237,1746669032026,-114.64253609,0.00019534,2]
[360257238,1746669032036,-150.33865589,0.000196,2]
[360257239,1746669032045,-243.30386716,0.00019616,2]
[360257240,1746669032077,-420.33866893,0.00019616,2]
[360257241,1746669032087,-168.35709968,0.00019644,2]
[360257242,1746669032097,-663.64253609,0.00019699,2]
[360257243,1746669032106,-191.77657683,0.000197,2]
[360257244,1746669032116,-517.85636678,0.00019753,2]
[360257245,1746669032128,-145.78616931,0.00019753,2]
[360257246,1746669032138,-601.0,0.00019753,2]
[360257247,1746669032148,-500.0,0.00019753,2]
[360257248,1746669032158,-1200.0,0.00019795,2]
[360257249,1746669032168,-300.0,0.00019795,2]
[360257250,1746669032178,-1190.82294876,0.00019796,2]
[360257251,1746669032187,-663.64253609,0.00019836,2]
[360257252,1746669032197,-1190.19508567,0.00019867,2]
[360257253,1746669032207,-207.4,0.00019884,2]
[360257254,1746669032217,-1190.82294876,0.00019891,2]
[360257255,1746669032226,-300.0,0.00019894,2]
[360257256,1746669032236,-2383.2966414,0.00019895,2]
[360257257,1746669032245,-216.8038,0.00019895,2]
[360257258,1746669032255,-1190.19508567,0.00019895,2]
[360257259,1746669032265,-2383.29664133,0.00019896,2]
[360257260,1746669032276,-6206.4045,0.00019896,2]
[360257261,1746669032286,-2500.6365,0.00019896,2]
[360257262,1746669032300,-2383.29664133,0.00019896,2]
[360257263,1746669032311,-2383.29664133,0.00019897,2]
[360257264,1746669032320,-335.57493582,0.00019897,2]
[360257265,1746669032330,-256.61969256,0.00019897,2]
[360257266,1746669032341,-2383.29664133,0.00019897,2]
[360257268,1746669032351,-2383.29664133,0.00019898,2]
[360257298,1746669032599,-343.9995,0.00019898,2]
[360257300,1746669032609,-2383.29664133,0.00019898,2]
[360257302,1746669032619,-2383.29664133,0.00019899,2]
[360257305,1746669032629,-234.3059244,0.00019899,2]
[360257307,1746669032639,-2383.29664133,0.00019899,2]
[360257309,1746669032648,-2383.29664133,0.000199,2]
[360257311,1746669032658,-246.5194304,0.000199,2]
[360257313,1746669032667,-465.95425222,0.000199,2]
[360257315,1746669032678,-197.192869,0.00019966,2]
[360257317,1746669032687,-197.192869,0.00019966,2]
[360257319,1746669032697,-169.0,0.00019973,2]
[360257321,1746669032706,-229.88384516,0.00019973,2]
[360257323,1746669032715,-509.6733568,0.00019973,2]
[360257325,1746669032725,-500.90155084,0.00019973,2]
[360257327,1746669032735,-508.32181872,0.00019973,2]
[360257329,1746669032745,-501.90720917,0.00019973,2]
[360257331,1746669032754,-181.97215076,0.00019973,2]
[360257333,1746669032763,-503.98996424,0.00019973,2]
[360257335,1746669032773,-500.0,0.00019973,2]
[360257337,1746669032783,-500.0,0.00019973,2]
[360257339,1746669032792,-503.13412012,0.00019974,2]
[360257341,1746669032802,-264.43,0.00019985,2]
[360257343,1746669032813,-1905.5491477,0.00019986,2]
[360257345,1746669032823,-1791.0074183,0.00019986,2]
[360257347,1746669032836,-7864.959519,0.00019986,2]
[360257349,1746669032845,-1036.3683109,0.00019986,2]
[360257351,1746669032855,-27577.8019653,0.00019986,2]
[360257353,1746669032864,-1834.7633513,0.00019986,2]
[360257355,1746669032873,-500.0,0.00019994,2]
[360257357,1746669032883,-500.0,0.00019994,2]
[360257359,1746669032893,-500.0,0.00019994,2]
[360257361,1746669032902,-500.0,0.00019994,2]
[360257363,1746669032912,-500.0,0.00019994,2]
[360257365,1746669032921,-500.0,0.00019994,2]
[360257367,1746669032931,-500.0,0.00019994,2]
[360257368,1746669032940,-500.0,0.00019994,2]
[360257370,1746669032950,-500.0,0.00019994,2]
[360257372,1746669032960,-500.0,0.00019994,2]
[360257375,1746669032969,-500.0,0.00019994,2]
[360257377,1746669032980,-500.0,0.00019994,2]
[360257379,1746669032990,-500.0,0.00019994,2]
[360257381,1746669033000,-500.0,0.00019994,2]
[360257383,1746669033009,-500.0,0.00019994,2]
[360257384,1746669033019,-500.0,0.00019994,2]
[360257387,1746669033030,-500.0,0.00019994,2]
[360257389,1746669033040,-500.0,0.00019994,2]
[360257391,1746669033050,-438.49749599,0.00019994,2]
[360257393,1746669033060,-500.0,0.00019994,2]
[360257395,1746669033070,-500.0,0.00019994,2]
[360257397,1746669033081,-500.0,0.00019994,2]
[360257399,1746669033090,-500.0,0.00019994,2]
[360257401,1746669033101,-500.0,0.00019994,2]
[360257403,1746669033110,-500.0,0.00019994,2]
[360257405,1746669033119,-500.0,0.00019994,2]
[360257407,1746669033130,-500.0,0.00019994,2]
[360257409,1746669033140,-222.20284278,0.00019994,2]
[360257411,1746669033150,-500.0,0.00019994,2]
[360257413,1746669033161,-450.0,0.00019994,2]
[360257415,1746669033171,-452.10888521,0.00019994,2]
[360257417,1746669033182,-297.86301383,0.00019995,2]
[360257419,1746669033192,-483.10775841,0.00019995,2]
[360257421,1746669033202,-491.23849612,0.00019995,2]
[360257423,1746669033211,-536.77593441,0.00019995,2]
[360257425,1746669033221,-480.44057397,0.00019995,2]
[360257427,1746669033232,-450.0,0.00019995,2]
[360257429,1746669033242,-450.0,0.00019995,2]
[360257430,1746669033251,-468.3389897,0.00019995,2]
[360257432,1746669033261,-465.95723057,0.00019995,2]
[360257434,1746669033271,-544.12004159,0.00019995,2]
[360257436,1746669033281,-474.54042782,0.00019995,2]
[360257438,1746669033291,-462.93421715,0.00019995,2]
[360257440,1746669033302,-510.37289499,0.00019995,2]
[360257442,1746669033315,-450.0,0.00019995,2]
[360257444,1746669033324,-462.74025736,0.00019995,2]
[360257445,1746669033335,-461.19522666,0.00019995,2]
[360257446,1746669033346,-478.29396495,0.00019995,2]
[360257447,1746669033356,-450.0,0.00019995,2]
[360257448,1746669033365,-478.88490396,0.00019995,2]
[360257449,1746669033376,-450.0,0.00019995,2]
[360257450,1746669033386,-458.63741006,0.00019995,2]
[360257451,1746669033396,-488.8320824,0.00019995,2]
[360257452,1746669033407,-467.12306459,0.00019995,2]
[360257453,1746669033417,-456.91943006,0.00019995,2]
[360257454,1746669033430,-450.0,0.00019995,2]
[360257455,1746669033441,-498.24517594,0.00019995,2]
[360257456,1746669033451,-175.9335727,0.00019995,2]
[360257457,1746669033461,-457.40426465,0.00019995,2]
[360257458,1746669033472,-640.29694866,0.00019995,2]
[360257459,1746669033482,-484.09697032,0.00019995,2]
[360257460,1746669033492,-468.49969417,0.00019995,2]
[360257461,1746669033502,-450.93267328,0.00019995,2]
[360257462,1746669033511,-450.0,0.00019995,2]
[360257463,1746669033522,-472.95337437,0.00019995,2]
[360257464,1746669033531,-450.0,0.00019995,2]
[360257465,1746669033541,-412.25420975,0.00019995,2]
[360257466,1746669033552,-450.0,0.00019995,2]
[360257467,1746669033562,-450.0,0.00019995,2]
[360257468,1746669033572,-587.48217113,0.00019995,2]
[360257469,1746669033582,-182.97245264,0.00019995,2]
[360257470,1746669033592,-450.0,0.00019995,2]
[360257471,1746669033602,-450.0,0.00019995,2]
[360257472,1746669033612,-500.0,0.00019995,2]
[360257473,1746669033621,-450.0,0.00019995,2]
[360257474,1746669033632,-488.86852267,0.00019995,2]
[360257475,1746669033642,-465.37296717,0.00019995,2]
[360257476,1746669033652,-450.0,0.00019995,2]
[360257477,1746669033662,-450.0,0.00019995,2]
[360257478,1746669033672,-450.0,0.00019995,2]
[360257479,1746669033682,-450.0,0.00019995,2]
[360257480,1746669033691,-475.33056011,0.00019995,2]
[360257481,1746669033701,-521.18653334,0.00019995,2]
[360257482,1746669033711,-462.71632728,0.00019995,2]
[360257483,1746669033721,-450.0,0.00019995,2]
[360257484,1746669033731,-450.0,0.00019995,2]
[360257485,1746669033740,-450.0,0.00019995,2]
[360257486,1746669033750,-357.34827239,0.00019995,2]
[360257487,1746669033764,-92.65172761,0.00019995,2]
[360257488,1746669033774,-363.8705213,0.00019995,2]
[360257489,1746669033808,-126.67149638,0.00019995,2]
[360257490,1746669033818,-469.23653782,0.00019995,2]
[360257491,1746669033828,-179.60950233,0.00019995,2]